[Event "*** Titled Tuesday 3|2 Blitz (Late)"]
[Site "Chess.com"]
[Date "2016.11.01"]
[Round "4"]
[White "MFBerna"]
[Black "KingFlorida"]
[Result "1-0"]
[WhiteElo "2181"]
[BlackElo "2289"]
[TimeControl "180+2"]
[EndTime "17:55:54 PDT"]
[Termination "MFBerna won by checkmate"]

1. e4 {[%clk 0:03:02]} 1... Nf6 {[%clk 0:03:00]} 2. e5 {[%clk 0:03:02.4]} 2...
Nd5 {[%clk 0:03:00.6]} 3. d4 {[%clk 0:03:03.5]} 3... d6 {[%clk 0:03:00.1]} 4.
Nf3 {[%clk 0:03:04.6]} 4... Bg4 {[%clk 0:03:00.8]} 5. Be2 {[%clk 0:02:58.8]}
5... c6 {[%clk 0:03:01.5]} 6. O-O {[%clk 0:02:57.4]} 6... Bxf3 {[%clk
0:03:02.3]} 7. Bxf3 {[%clk 0:02:59.3]} 7... dxe5 {[%clk 0:03:04.2]} 8. dxe5
{[%clk 0:02:58.4]} 8... e6 {[%clk 0:03:05.5]} 9. Qe2 {[%clk 0:02:57.9]} 9... Nd7
{[%clk 0:03:04.4]} 10. b3 {[%clk 0:02:57.5]} 10... Ne7 {[%clk 0:02:54.6]} 11.
Bb2 {[%clk 0:02:57.3]} 11... Ng6 {[%clk 0:02:55.7]} 12. Nd2 {[%clk 0:02:51.8]}
12... Bb4 {[%clk 0:02:46.6]} 13. Nc4 {[%clk 0:02:49.5]} 13... O-O {[%clk
0:02:43.7]} 14. a3 {[%clk 0:02:45.5]} 14... Ba5 {[%clk 0:02:24.9]} 15. Nxa5
{[%clk 0:02:44.4]} 15... Qxa5 {[%clk 0:02:26.8]} 16. Rfe1 {[%clk 0:02:36.8]}
16... Rfd8 {[%clk 0:02:21]} 17. b4 {[%clk 0:02:31.9]} 17... Qc7 {[%clk
0:02:20.4]} 18. Rad1 {[%clk 0:02:29.3]} 18... a5 {[%clk 0:02:03.8]} 19. g3
{[%clk 0:01:48]} 19... axb4 {[%clk 0:01:56.8]} 20. axb4 {[%clk 0:01:49.9]} 20...
Ra2 {[%clk 0:01:57.1]} 21. Ba1 {[%clk 0:01:35.4]} 21... Ne7 {[%clk 0:01:58.5]}
22. Qc4 {[%clk 0:01:28.4]} 22... Raa8 {[%clk 0:01:53.4]} 23. Qb3 {[%clk
0:01:22.5]} 23... Nf5 {[%clk 0:01:15.8]} 24. Bb2 {[%clk 0:01:10.7]} 24... Nb6
{[%clk 0:01:03.3]} 25. c4 {[%clk 0:01:01.8]} 25... h6 {[%clk 0:00:49.1]} 26. Bg4
{[%clk 0:00:52.2]} 26... Ne7 {[%clk 0:00:40.1]} 27. Bd4 {[%clk 0:00:44.6]} 27...
Nd7 {[%clk 0:00:32.1]} 28. Qe3 {[%clk 0:00:39]} 28... b6 {[%clk 0:00:27.8]} 29.
b5 {[%clk 0:00:32.1]} 29... c5 {[%clk 0:00:19.1]} 30. Bc3 {[%clk 0:00:27.8]}
30... Nf8 {[%clk 0:00:19.5]} 31. Bf3 {[%clk 0:00:23.4]} 31... Nf5 {[%clk
0:00:15.8]} 32. Qe4 {[%clk 0:00:16.9]} 32... Rxd1 {[%clk 0:00:14.6]} 33. Rxd1
{[%clk 0:00:18.1]} 33... Rd8 {[%clk 0:00:15.3]} 34. Rxd8 {[%clk 0:00:16.1]}
34... Qxd8 {[%clk 0:00:17.2]} 35. Bg4 {[%clk 0:00:12.2]} 35... g6 {[%clk
0:00:08]} 36. Kg2 {[%clk 0:00:12]} 36... h5 {[%clk 0:00:06.7]} 37. Bf3 {[%clk
0:00:05.5]} 37... Nd7 {[%clk 0:00:05.2]} 38. Bb2 {[%clk 0:00:04.4]} 38... Qc7
{[%clk 0:00:05.2]} 39. Bc3 {[%clk 0:00:04.6]} 39... Nd4 {[%clk 0:00:04]} 40.
Bxd4 {[%clk 0:00:05]} 40... cxd4 {[%clk 0:00:05.9]} 41. Qxd4 {[%clk 0:00:04.7]}
41... Nxe5 {[%clk 0:00:07.2]} 42. Be2 {[%clk 0:00:04.7]} 42... Nd7 {[%clk
0:00:08.5]} 43. f4 {[%clk 0:00:04.7]} 43... Nc5 {[%clk 0:00:09.4]} 44. Bf3
{[%clk 0:00:05.6]} 44... Qa7 {[%clk 0:00:10]} 45. Qd8+ {[%clk 0:00:06]} 45...
Kg7 {[%clk 0:00:10.7]} 46. Qd4+ {[%clk 0:00:07.4]} 46... Kg8 {[%clk 0:00:11.6]}
47. Kh3 {[%clk 0:00:05.9]} 47... Qc7 {[%clk 0:00:10.6]} 48. Bc6 {[%clk
0:00:06.3]} 48... Kh7 {[%clk 0:00:09.9]} 49. Qf6 {[%clk 0:00:05.8]} 49... Kg8
{[%clk 0:00:08]} 50. Kh4 {[%clk 0:00:06.5]} 50... Nb3 {[%clk 0:00:04]} 51. Kg5
{[%clk 0:00:05.2]} 51... Kh7 {[%clk 0:00:05.5]} 52. Be8 {[%clk 0:00:04]} 52...
Kg8 {[%clk 0:00:06.8]} 53. Kh6 {[%clk 0:00:02.9]} 53... Kf8 {[%clk 0:00:08.3]}
54. Bc6 {[%clk 0:00:03.3]} 54... Nc5 {[%clk 0:00:07.7]} 55. Qh8+ {[%clk
0:00:04.3]} 55... Ke7 {[%clk 0:00:09]} 56. Qd4 {[%clk 0:00:04.5]} 56... Qd6
{[%clk 0:00:09.4]} 57. Qg7 {[%clk 0:00:04.5]} 57... Qc7 {[%clk 0:00:10]} 58. Kh7
{[%clk 0:00:05.8]} 58... Nd7 {[%clk 0:00:10.5]} 59. Bxd7 {[%clk 0:00:06.2]}
59... Qxd7 {[%clk 0:00:12.4]} 60. Qe5 {[%clk 0:00:06.5]} 60... Qc8 {[%clk
0:00:12.1]} 61. Qg5+ {[%clk 0:00:04.9]} 61... Kf8 {[%clk 0:00:11.7]} 62. Qh6+
{[%clk 0:00:05.2]} 62... Ke7 {[%clk 0:00:12.6]} 63. Qg5+ {[%clk 0:00:06.4]}
63... Kf8 {[%clk 0:00:13.8]} 64. Qf6 {[%clk 0:00:07.1]} 64... Qc7 {[%clk
0:00:12.3]} 65. Qh8+ {[%clk 0:00:06.4]} 65... Ke7 {[%clk 0:00:13.6]} 66. Qd4
{[%clk 0:00:07.8]} 66... Qb8 {[%clk 0:00:12.5]} 67. Kg7 {[%clk 0:00:07.8]} 67...
Qf8+ {[%clk 0:00:12.9]} 68. Kh7 {[%clk 0:00:09.3]} 68... Qb8 {[%clk 0:00:14.8]}
69. c5 {[%clk 0:00:09.1]} 69... f6 {[%clk 0:00:08.2]} 70. cxb6 {[%clk
0:00:03.9]} 70... Qe8 {[%clk 0:00:07.5]} 71. Qc5+ {[%clk 0:00:04.9]} 71... Kf7
{[%clk 0:00:07.9]} 72. Qc7+ {[%clk 0:00:06.1]} 72... Kf8 {[%clk 0:00:09.4]} 73.
Qg7# {[%clk 0:00:07.2]} 1-0

[Event "*** Titled Tuesday 3|2 Blitz (Late)"]
[Site "Chess.com"]
[Date "2016.11.01"]
[Round "5"]
[White "howitzer14"]
[Black "chito89"]
[Result "1-0"]
[WhiteElo "2780"]
[BlackElo "2488"]
[TimeControl "180+2"]
[EndTime "17:59:22 PDT"]
[Termination "howitzer14 won by resignation"]

1. e4 {[%clk 0:03:02]} 1... d6 {[%clk 0:02:56.5]} 2. d4 {[%clk 0:03:01.8]} 2...
g6 {[%clk 0:02:57.8]} 3. Nf3 {[%clk 0:03:02]} 3... Bg7 {[%clk 0:02:58.9]} 4. Bc4
{[%clk 0:03:03.1]} 4... e6 {[%clk 0:02:58]} 5. O-O {[%clk 0:03:02.4]} 5... a6
{[%clk 0:02:59]} 6. a4 {[%clk 0:03:02.4]} 6... b6 {[%clk 0:02:59.6]} 7. d5
{[%clk 0:03:03.6]} 7... e5 {[%clk 0:02:59.8]} 8. a5 {[%clk 0:03:04.7]} 8... b5
{[%clk 0:02:59.6]} 9. Bd3 {[%clk 0:03:04.6]} 9... Nf6 {[%clk 0:03:00.9]} 10. c4
{[%clk 0:03:05.9]} 10... bxc4 {[%clk 0:02:57.2]} 11. Qa4+ {[%clk 0:03:05.6]}
11... Bd7 {[%clk 0:02:56.2]} 12. Qxc4 {[%clk 0:03:03.4]} 12... Bb5 {[%clk
0:02:55.4]} 13. Qc2 {[%clk 0:03:02]} 13... Bxd3 {[%clk 0:02:31.3]} 14. Qxd3
{[%clk 0:03:03.9]} 14... c5 {[%clk 0:02:32.2]} 15. dxc6 {[%clk 0:02:52.1]} 15...
Nxc6 {[%clk 0:02:32.5]} 16. Bg5 {[%clk 0:02:54]} 16... O-O {[%clk 0:02:14.7]}
17. Nc3 {[%clk 0:02:50.4]} 17... Nxa5 {[%clk 0:02:03.9]} 18. Bxf6 {[%clk
0:02:33.2]} 18... Bxf6 {[%clk 0:02:03.3]} 19. Qd5 {[%clk 0:02:34.8]} 1-0

[Event "*** Titled Tuesday 3|2 Blitz (Late)"]
[Site "Chess.com"]
[Date "2016.11.01"]
[Round "5"]
[White "fastestmindalive"]
[Black "GianmarcoVaR"]
[Result "1-0"]
[WhiteElo "2534"]
[BlackElo "2409"]
[TimeControl "180+2"]
[EndTime "18:01:37 PDT"]
[Termination "fastestmindalive won by resignation"]

1. e4 {[%clk 0:02:58.6]} 1... c5 {[%clk 0:02:58.6]} 2. Nc3 {[%clk 0:02:57.1]}
2... a6 {[%clk 0:02:55.5]} 3. Nf3 {[%clk 0:02:57.1]} 3... d6 {[%clk 0:02:56.2]}
4. d4 {[%clk 0:02:58.1]} 4... cxd4 {[%clk 0:02:56.7]} 5. Nxd4 {[%clk 0:03:00]}
5... Nf6 {[%clk 0:02:56.9]} 6. h3 {[%clk 0:03:01.6]} 6... e5 {[%clk 0:02:57]} 7.
Nde2 {[%clk 0:03:02.1]} 7... Be6 {[%clk 0:02:54.4]} 8. g4 {[%clk 0:03:01.8]}
8... Be7 {[%clk 0:02:37.8]} 9. Bg2 {[%clk 0:03:00.7]} 9... Nc6 {[%clk
0:02:33.8]} 10. Be3 {[%clk 0:02:59.6]} 10... O-O {[%clk 0:02:31.8]} 11. b3
{[%clk 0:02:59.5]} 11... Rc8 {[%clk 0:02:28.1]} 12. Nd5 {[%clk 0:02:58.3]} 12...
Bxd5 {[%clk 0:02:05.6]} 13. exd5 {[%clk 0:03:00.2]} 13... Nb4 {[%clk 0:02:07]}
14. c3 {[%clk 0:02:48.6]} 14... Nc6 {[%clk 0:00:44.4]} 15. dxc6 {[%clk
0:02:46.7]} 15... bxc6 {[%clk 0:00:45.5]} 16. O-O {[%clk 0:02:47.5]} 16... d5
{[%clk 0:00:46.6]} 17. f4 {[%clk 0:02:46.5]} 17... e4 {[%clk 0:00:37.7]} 18. Nd4
{[%clk 0:02:47.4]} 18... Re8 {[%clk 0:00:38.6]} 19. Nf5 {[%clk 0:02:47.5]} 19...
Bf8 {[%clk 0:00:39.6]} 20. g5 {[%clk 0:02:48.5]} 20... Nd7 {[%clk 0:00:40]} 21.
Qg4 {[%clk 0:02:42.9]} 21... Nc5 {[%clk 0:00:40.9]} 22. h4 {[%clk 0:02:39.5]}
22... Nd3 {[%clk 0:00:41]} 23. h5 {[%clk 0:02:40.3]} 23... Kh8 {[%clk
0:00:41.3]} 24. h6 {[%clk 0:02:40]} 24... g6 {[%clk 0:00:41.8]} 25. Bd4+ {[%clk
0:02:41.1]} 25... Kg8 {[%clk 0:00:43.1]} 26. Ne3 {[%clk 0:02:40.5]} 26... c5
{[%clk 0:00:35.8]} 27. Bf6 {[%clk 0:02:41]} 27... Qd6 {[%clk 0:00:36.8]} 28. f5
{[%clk 0:02:42]} 28... Bxh6 {[%clk 0:00:26.2]} 29. fxg6 {[%clk 0:02:41.4]} 29...
Bg7 {[%clk 0:00:14.7]} 30. gxf7+ {[%clk 0:02:41.2]} 1-0

[Event "*** Titled Tuesday 3|2 Blitz (Late)"]
[Site "Chess.com"]
[Date "2016.11.01"]
[Round "5"]
[White "Scott-fox21"]
[Black "michaelk123"]
[Result "0-1"]
[WhiteElo "2188"]
[BlackElo "2150"]
[TimeControl "180+2"]
[EndTime "18:01:58 PDT"]
[Termination "michaelk123 won by resignation"]

1. d4 {[%clk 0:03:02]} 1... Nf6 {[%clk 0:02:59.7]} 2. c4 {[%clk 0:03:03.2]} 2...
g6 {[%clk 0:03:00.7]} 3. Nc3 {[%clk 0:03:04.1]} 3... d5 {[%clk 0:02:59.8]} 4.
cxd5 {[%clk 0:03:05]} 4... Nxd5 {[%clk 0:03:00.8]} 5. Bd2 {[%clk 0:03:06.6]}
5... Bg7 {[%clk 0:03:00.9]} 6. e4 {[%clk 0:03:07.8]} 6... Nxc3 {[%clk
0:03:02.1]} 7. Bxc3 {[%clk 0:03:09.1]} 7... O-O {[%clk 0:03:03.5]} 8. Qd2 {[%clk
0:03:01.5]} 8... Nc6 {[%clk 0:03:03.9]} 9. d5 {[%clk 0:03:01.4]} 9... Ne5 {[%clk
0:03:02.9]} 10. f4 {[%clk 0:02:48.4]} 10... Ng4 {[%clk 0:03:03.5]} 11. Bxg7
{[%clk 0:02:43.8]} 11... Kxg7 {[%clk 0:03:03.8]} 12. h3 {[%clk 0:02:44.3]} 12...
Nf6 {[%clk 0:03:03.5]} 13. Bd3 {[%clk 0:02:33.4]} 13... c6 {[%clk 0:02:26.8]}
14. dxc6 {[%clk 0:02:26.1]} 14... Qb6 {[%clk 0:02:22.1]} 15. cxb7 {[%clk
0:02:20.7]} 15... Bxb7 {[%clk 0:02:22.4]} 16. e5 {[%clk 0:01:52.4]} 16... Nd5
{[%clk 0:02:09.5]} 17. Ne2 {[%clk 0:01:21.9]} 17... Rfd8 {[%clk 0:01:47]} 18.
Be4 {[%clk 0:00:26.4]} 18... Ne3 {[%clk 0:01:44.4]} 19. Bd3 {[%clk 0:00:12.1]}
19... Nxg2+ {[%clk 0:01:36]} 20. Kf1 {[%clk 0:00:09.9]} 20... Ne3+ {[%clk
0:01:36.6]} 21. Kf2 {[%clk 0:00:10.3]} 21... Nc4+ {[%clk 0:01:36.5]} 0-1

[Event "*** Titled Tuesday 3|2 Blitz (Late)"]
[Site "Chess.com"]
[Date "2016.11.01"]
[Round "5"]
[White "TheSovietChess"]
[Black "GM_Barcenilla"]
[Result "1-0"]
[WhiteElo "2542"]
[BlackElo "2674"]
[TimeControl "180+2"]
[EndTime "18:02:22 PDT"]
[Termination "TheSovietChess won by resignation"]

1. d4 {[%clk 0:03:00.5]} 1... g6 {[%clk 0:03:00.4]} 2. c4 {[%clk 0:03:01.9]}
2... Bg7 {[%clk 0:03:01.5]} 3. Nf3 {[%clk 0:03:03.5]} 3... Nf6 {[%clk
0:03:02.3]} 4. Nc3 {[%clk 0:03:05]} 4... d6 {[%clk 0:03:01.6]} 5. e4 {[%clk
0:03:06.3]} 5... O-O {[%clk 0:03:02.2]} 6. Bd3 {[%clk 0:03:07.8]} 6... Nc6
{[%clk 0:02:57.8]} 7. d5 {[%clk 0:03:06.4]} 7... Nb8 {[%clk 0:02:56.3]} 8. O-O
{[%clk 0:03:07.2]} 8... a5 {[%clk 0:02:50]} 9. h3 {[%clk 0:03:08.3]} 9... Na6
{[%clk 0:02:48.7]} 10. a3 {[%clk 0:03:09]} 10... c6 {[%clk 0:02:41.7]} 11. Bg5
{[%clk 0:03:07.7]} 11... cxd5 {[%clk 0:02:35.5]} 12. exd5 {[%clk 0:03:07.2]}
12... Nc5 {[%clk 0:02:36.5]} 13. Bc2 {[%clk 0:03:07.8]} 13... e6 {[%clk
0:02:35.9]} 14. b4 {[%clk 0:03:07.9]} 14... axb4 {[%clk 0:02:33.5]} 15. axb4
{[%clk 0:03:09.8]} 15... Rxa1 {[%clk 0:02:34.8]} 16. Qxa1 {[%clk 0:03:10.8]}
16... Na6 {[%clk 0:02:34.5]} 17. Qa3 {[%clk 0:03:11.1]} 17... Nc7 {[%clk
0:02:32]} 18. Rd1 {[%clk 0:03:11.2]} 18... exd5 {[%clk 0:02:30]} 19. cxd5 {[%clk
0:03:11.8]} 19... Bd7 {[%clk 0:02:29.3]} 20. Qb3 {[%clk 0:03:09.7]} 20... Nb5
{[%clk 0:02:21.8]} 21. Ne4 {[%clk 0:03:10.1]} 21... h6 {[%clk 0:02:05.5]} 22.
Nxf6+ {[%clk 0:03:10.7]} 22... Bxf6 {[%clk 0:02:07]} 23. Bxh6 {[%clk 0:03:11.4]}
23... Re8 {[%clk 0:02:08.5]} 24. Bd2 {[%clk 0:03:11.2]} 24... Qb6 {[%clk
0:02:04.5]} 25. Re1 {[%clk 0:02:54.1]} 25... Rxe1+ {[%clk 0:02:02.3]} 26. Bxe1
{[%clk 0:02:56]} 26... Nd4 {[%clk 0:02:01.7]} 27. Nxd4 {[%clk 0:02:56.2]} 27...
Bxd4 {[%clk 0:02:02.3]} 28. Qc4 {[%clk 0:02:55.2]} 28... Qa7 {[%clk 0:01:57.2]}
29. g4 {[%clk 0:02:55.1]} 29... Qa1 {[%clk 0:01:54.5]} 30. Kf1 {[%clk
0:02:51.9]} 30... Kg7 {[%clk 0:01:39]} 31. Bd3 {[%clk 0:02:52.3]} 31... Bf6
{[%clk 0:01:36.8]} 32. Be2 {[%clk 0:02:52.8]} 32... Ba4 {[%clk 0:01:33.7]} 33.
Qd3 {[%clk 0:02:53.4]} 33... Qe5 {[%clk 0:01:23.2]} 34. Kg2 {[%clk 0:02:53.4]}
34... Bb3 {[%clk 0:01:20.8]} 35. Qxb3 {[%clk 0:02:53.9]} 35... Qxe2 {[%clk
0:01:21.5]} 36. Qe3 {[%clk 0:02:54.3]} 36... Qc4 {[%clk 0:01:17.1]} 37. Qd2
{[%clk 0:02:55]} 37... Bd4 {[%clk 0:01:17.5]} 38. f3 {[%clk 0:02:55.6]} 38... b5
{[%clk 0:01:14.8]} 39. h4 {[%clk 0:02:56.3]} 39... Be5 {[%clk 0:01:08.2]} 40. h5
{[%clk 0:02:56.7]} 40... gxh5 {[%clk 0:01:05]} 41. gxh5 {[%clk 0:02:58.6]} 41...
Kh7 {[%clk 0:01:03.2]} 42. Bg3 {[%clk 0:02:59]} 42... Bd4 {[%clk 0:00:57.5]} 43.
Bxd6 {[%clk 0:02:57.5]} 43... Bc3 {[%clk 0:00:49.6]} 44. Qc2+ {[%clk 0:02:57.7]}
44... Kg7 {[%clk 0:00:45.8]} 45. Bc5 {[%clk 0:02:57.3]} 45... Kh6 {[%clk
0:00:33.6]} 46. d6 {[%clk 0:02:57.8]} 1-0

[Event "*** Titled Tuesday 3|2 Blitz (Late)"]
[Site "Chess.com"]
[Date "2016.11.01"]
[Round "5"]
[White "nonscitis"]
[Black "cheese111"]
[Result "1-0"]
[WhiteElo "2320"]
[BlackElo "2244"]
[TimeControl "180+2"]
[EndTime "18:02:40 PDT"]
[Termination "nonscitis won on time"]

1. e4 {[%clk 0:02:59.1]} 1... d5 {[%clk 0:03:01.1]} 2. exd5 {[%clk 0:02:58.5]}
2... Nf6 {[%clk 0:03:02.6]} 3. Nc3 {[%clk 0:02:57.8]} 3... Nxd5 {[%clk
0:03:02.6]} 4. Qf3 {[%clk 0:02:58.6]} 4... Nb6 {[%clk 0:02:37.5]} 5. a4 {[%clk
0:02:57.4]} 5... Nc6 {[%clk 0:02:31.6]} 6. a5 {[%clk 0:02:53]} 6... Nd4 {[%clk
0:02:30.6]} 7. Qd1 {[%clk 0:02:51.5]} 7... Nd5 {[%clk 0:02:26]} 8. Nf3 {[%clk
0:02:50.4]} 8... Bg4 {[%clk 0:02:22.9]} 9. a6 {[%clk 0:02:40.7]} 9... Bxf3
{[%clk 0:02:01.4]} 10. gxf3 {[%clk 0:02:38.2]} 10... Qd7 {[%clk 0:01:41.7]} 11.
axb7 {[%clk 0:02:30.8]} 11... Qe6+ {[%clk 0:01:33.8]} 12. Qe2 {[%clk 0:02:23.8]}
12... Rb8 {[%clk 0:00:36.9]} 13. Qxe6 {[%clk 0:02:22.4]} 13... fxe6 {[%clk
0:00:36.2]} 14. Rxa7 {[%clk 0:02:22.1]} 14... Kd7 {[%clk 0:00:32.8]} 15. Kd1
{[%clk 0:01:53.7]} 15... Kc6 {[%clk 0:00:17.2]} 16. Bh3 {[%clk 0:01:33.9]} 16...
Kb6 {[%clk 0:00:14.7]} 17. Ra4 {[%clk 0:01:29.6]} 17... c5 {[%clk 0:00:13.5]}
18. Nxd5+ {[%clk 0:01:25.2]} 18... exd5 {[%clk 0:00:13.8]} 19. Bc8 {[%clk
0:01:24.5]} 19... e5 {[%clk 0:00:10.5]} 20. b3 {[%clk 0:01:02.3]} 1-0

[Event "*** Titled Tuesday 3|2 Blitz (Late)"]
[Site "Chess.com"]
[Date "2016.11.01"]
[Round "5"]
[White "chessking2151"]
[Black "calemcc"]
[Result "1-0"]
[WhiteElo "2331"]
[BlackElo "2208"]
[TimeControl "180+2"]
[EndTime "18:03:17 PDT"]
[Termination "chessking2151 won by resignation"]

1. e4 {[%clk 0:03:02]} 1... e6 {[%clk 0:03:00.2]} 2. d4 {[%clk 0:03:02.7]} 2...
d5 {[%clk 0:03:02.1]} 3. Nd2 {[%clk 0:03:02.8]} 3... Nc6 {[%clk 0:03:02.7]} 4.
Ngf3 {[%clk 0:03:03.6]} 4... Nf6 {[%clk 0:03:03.4]} 5. e5 {[%clk 0:03:00]} 5...
Nd7 {[%clk 0:03:04.5]} 6. Bd3 {[%clk 0:03:01.1]} 6... Nb4 {[%clk 0:03:04.7]} 7.
Be2 {[%clk 0:02:59.4]} 7... c5 {[%clk 0:03:05.8]} 8. c3 {[%clk 0:03:00.8]} 8...
Nc6 {[%clk 0:03:07.3]} 9. O-O {[%clk 0:03:01.3]} 9... f6 {[%clk 0:03:02.7]} 10.
exf6 {[%clk 0:03:02.3]} 10... Qxf6 {[%clk 0:03:03.1]} 11. Re1 {[%clk 0:03:03.8]}
11... Bd6 {[%clk 0:03:03.2]} 12. Nf1 {[%clk 0:03:04.6]} 12... O-O {[%clk
0:03:04]} 13. Ne3 {[%clk 0:03:02.7]} 13... h6 {[%clk 0:02:52.6]} 14. Ng4 {[%clk
0:03:00.9]} 14... Qf7 {[%clk 0:02:51.8]} 15. Bd3 {[%clk 0:02:56.9]} 15... Qh5
{[%clk 0:02:38.5]} 16. h3 {[%clk 0:02:56.1]} 16... e5 {[%clk 0:02:25.2]} 17.
dxe5 {[%clk 0:02:27.3]} 17... Ndxe5 {[%clk 0:02:25.9]} 18. Nfxe5 {[%clk
0:02:26.9]} 18... Nxe5 {[%clk 0:02:26.4]} 19. Nf6+ {[%clk 0:01:45.5]} 19... Rxf6
{[%clk 0:02:15]} 20. Qxh5 {[%clk 0:01:44.2]} 20... Nxd3 {[%clk 0:02:16.5]} 21.
Qxd5+ {[%clk 0:01:41.7]} 21... Kf8 {[%clk 0:02:12.3]} 22. Qxd3 {[%clk
0:01:41.7]} 22... Bf5 {[%clk 0:02:12.5]} 23. Qe2 {[%clk 0:01:40.2]} 23... Re6
{[%clk 0:02:11]} 24. Be3 {[%clk 0:01:40.3]} 24... Kg8 {[%clk 0:02:03.7]} 25.
Rad1 {[%clk 0:01:39.1]} 25... Rae8 {[%clk 0:02:03.5]} 26. Qf3 {[%clk 0:01:37.8]}
26... Be4 {[%clk 0:02:02.2]} 27. Qe2 {[%clk 0:01:25.3]} 27... Rg6 {[%clk
0:02:02.2]} 28. f3 {[%clk 0:01:24.1]} 28... Bc6 {[%clk 0:02:02.5]} 29. Qc4+
{[%clk 0:01:13.1]} 29... Kh7 {[%clk 0:02:00.7]} 30. Bxc5 {[%clk 0:01:10.3]}
30... Bxf3 {[%clk 0:01:31.7]} 31. Rxe8 {[%clk 0:00:43.3]} 31... Rxg2+ {[%clk
0:01:08.1]} 32. Kf1 {[%clk 0:00:41]} 32... Bh2 {[%clk 0:00:54.6]} 33. Qd3+
{[%clk 0:00:34.4]} 33... Rg6 {[%clk 0:00:56]} 34. Qxf3 {[%clk 0:00:32.1]} 34...
Rf6 {[%clk 0:00:56.6]} 35. Qxf6 {[%clk 0:00:29.6]} 35... gxf6 {[%clk 0:00:58.5]}
1-0

[Event "*** Titled Tuesday 3|2 Blitz (Late)"]
[Site "Chess.com"]
[Date "2016.11.01"]
[Round "5"]
[White "kereswasbest"]
[Black "jposthuma"]
[Result "0-1"]
[WhiteElo "2130"]
[BlackElo "2186"]
[TimeControl "180+2"]
[EndTime "18:03:30 PDT"]
[Termination "jposthuma won by resignation"]

1. d4 {[%clk 0:03:02]} 1... Nf6 {[%clk 0:03:00.7]} 2. c4 {[%clk 0:03:02.3]} 2...
c5 {[%clk 0:03:02]} 3. d5 {[%clk 0:03:01.6]} 3... b5 {[%clk 0:03:03.3]} 4. cxb5
{[%clk 0:03:02.4]} 4... a6 {[%clk 0:03:04.7]} 5. Nc3 {[%clk 0:03:00.3]} 5...
axb5 {[%clk 0:02:59.3]} 6. e4 {[%clk 0:03:01.6]} 6... b4 {[%clk 0:02:58.9]} 7.
Nb5 {[%clk 0:03:01.5]} 7... d6 {[%clk 0:02:59.5]} 8. Bf4 {[%clk 0:03:00.2]} 8...
Nxe4 {[%clk 0:02:41.8]} 9. Qe2 {[%clk 0:02:59.8]} 9... g5 {[%clk 0:02:42.6]} 10.
Qxe4 {[%clk 0:02:47.5]} 10... gxf4 {[%clk 0:02:39.8]} 11. Nf3 {[%clk 0:02:39.8]}
11... Bg7 {[%clk 0:02:38.7]} 12. Bd3 {[%clk 0:02:39.5]} 12... Bxb2 {[%clk
0:02:29]} 13. O-O {[%clk 0:02:37.9]} 13... Bxa1 {[%clk 0:02:16.2]} 14. Rxa1
{[%clk 0:02:39.8]} 14... Bg4 {[%clk 0:02:14.2]} 15. Ng5 {[%clk 0:02:31]} 15...
Bh5 {[%clk 0:01:47.5]} 16. Re1 {[%clk 0:02:24]} 16... h6 {[%clk 0:01:31.3]} 17.
Qxf4 {[%clk 0:02:06.5]} 17... hxg5 {[%clk 0:01:30.4]} 18. Nxd6+ {[%clk
0:02:00.5]} 18... Kf8 {[%clk 0:01:16.3]} 19. Qe5 {[%clk 0:01:46.8]} 19... f6
{[%clk 0:01:10.5]} 20. Qe6 {[%clk 0:01:19.2]} 20... Qxd6 {[%clk 0:00:48.7]} 21.
Qc8+ {[%clk 0:01:19.9]} 21... Kg7 {[%clk 0:00:49.8]} 22. Qb7 {[%clk 0:01:21.1]}
22... Rxa2 {[%clk 0:00:17.3]} 23. Rxe7+ {[%clk 0:01:19.8]} 23... Kf8 {[%clk
0:00:18.4]} 24. Re6 {[%clk 0:01:00.7]} 24... Ra1+ {[%clk 0:00:15.8]} 25. Bf1
{[%clk 0:01:01.2]} 25... Rxf1+ {[%clk 0:00:06.9]} 26. Kxf1 {[%clk 0:01:01.5]}
26... Qxh2 {[%clk 0:00:06.7]} 27. Qc8+ {[%clk 0:00:57.3]} 27... Kg7 {[%clk
0:00:07.1]} 28. Re7+ {[%clk 0:00:53]} 28... Bf7 {[%clk 0:00:08.3]} 29. Rxf7+
{[%clk 0:00:50.7]} 29... Kxf7 {[%clk 0:00:09.1]} 30. Qxh8 {[%clk 0:00:52.4]}
30... Qxh8 {[%clk 0:00:09.6]} 0-1